[Event "Czech Extraliga 2023-24"]
[Site "Czech Republic"]
[Date "2024.04.06"]
[Round "10.1"]
[White "Gelfand, Boris"]
[Black "Harikrishna, Pentala"]
[Result "1/2-1/2"]
[ECO "E05"]
[WhiteElo "2661"]
[BlackElo "2701"]
[Annotator "RC"]
[PlyCount "166"]
[EventDate "2023.10.14"]
[EventCountry "CZE"]
[SourceTitle "playchess.com"]
[Source "ChessBase"]
[SourceQuality "1"]
[TimeControl "40/5400+30:1800+30"]

1. d4 {[%emt 0:00:07]} Nf6 {[%emt 0:00:18]} 2. c4 {[%emt 0:00:04]} e6 {[%emt 0:00:09]} 3. g3 {[%emt 0:00:07]} d5 {[%emt 0:00:32]} 4. Bg2 {[%emt 0:00:40]} Be7 {[%emt 0:00:20]} 5. Nf3 {[%emt 0:00:35]} O-O {[%emt 0:00:14]} 6. O-O {[%emt 0:02:53]} dxc4 {[%emt 0:00:07]} 7. Qc2 {[%emt 0:00:25]} a6 {[%emt 0:00:48]} 8. a4 {[%emt 0:01:22]} Bd7 {[%emt 0:00:28]} 9. Qxc4 {[%emt 0:00:21]} Bc6 {[%emt 0:00:13]} 10. Bg5 {[%emt 0:00:37]} Nbd7 {[%emt 0:01:42]} 11. Nc3 {[%emt 0:02:29]} a5 {[%emt 0:02:36]} 12. Rfd1 {[%emt 0:11:47]} h6 {[%emt 0:06:07]} 13. Bxf6 {[%emt 0:09:50]} Nxf6 {[%emt 0:02:44]} 14. Ne5 {[%emt 0:01:34]} Bxg2 {[%emt 0:01:41]} 15. Kxg2 {[%emt 0:01:15]} c6 {[%emt 0:03:10]} 16. e3 {[%emt 0:01:15]} Nd7 {[%emt 0:05:31]} 17. Nf3 {[%emt 0:01:05]} Bb4 {[%emt 0:05:49]} 18. Na2 {[%emt 0:08:45]} Bd6 {[%emt 0:04:38]} 19. Nc1 {[%emt 0:02:48]} Qc7 {[%emt 0:11:12]} 20. Nd3 {[%emt 0:03:23]} e5 {[%emt 0:12:27]} 21. dxe5 {[%emt 0:02:42]} Nxe5 {[%emt 0:00:51]} 22. Nfxe5 {[%emt 0:00:25]} Bxe5 {[%emt 0:00:11]} 23. Nxe5 {[%emt 0:12:42]} Qxe5 {[%emt 0:00:11]} 24. Rd4 {[%emt 0:00:02]} Rad8 {[%emt 0:05:36]} 25. Rad1 {[%emt 0:00:51]} Qc7 {[%emt 0:00:46]} 26. Qb3 {[%emt 0:09:30]} Rxd4 {[%emt 0:06:13]} 27. Rxd4 {[%emt 0:00:10]} Re8 {[%emt 0:00:16]} 28. Qd3 {[%emt 0:02:17]} Qe5 {[%emt 0:00:44]} 29. h4 {[%emt 0:04:08]} h5 {[%emt 0:04:29]} 30. b3 {[%emt 0:02:32]} g6 {[%emt 0:01:20]} 31. Qd2 {[%emt 0:01:45]} Kg7 {[%emt 0:08:06]} 32. Kh2 {[%emt 0:04:19]} Qe6 {[%emt 0:04:34]} 33. Qd3 {[%emt 0:03:48]} Qe5 {[%emt 0:03:13]} 34. Rd7 {[%emt 0:02:46]} b5 {[%emt 0:01:50]} 35. axb5 {[%emt 0:03:14]} cxb5 {[%emt 0:01:22]} 36. Rd5 {[%emt 0:00:07]} Qb2 {[%emt 0:01:20]} 37. Kg2 {[%emt 0:01:12]} a4 {[%emt 0:01:09]} 38. Rxb5 {[%emt 0:04:18]} a3 {[%emt 0:00:43]} 39. Ra5 {[%emt 0:00:02]} Re6 {[%emt 0:03:30]} 40. Qd1 {[%emt 0:01:43]} Rf6 {[%emt 0:00:47]} 41. Qe1 {[%emt 0:04:30]} Qxb3 {[%emt 0:11:16]} 42. Qa1 {[%emt 0:04:16]} Qb7+ {[%emt 0:00:13]} 43. e4 {[%emt 0:02:05]} Qxe4+ {[%emt 0:02:25]} 44. Kh2 {[%emt 0:06:02]} Qf3 {[%emt 0:04:15]} 45. Rxa3 {[%emt 0:00:09]} Qxf2+ {[%emt 0:00:07]} 46. Kh3 {[%emt 0:00:07]} Kh7 {[%emt 0:04:08]} 47. Ra8 {[%emt 0:02:59]} Qb6 {[%emt 0:04:53]} 48. Ra2 {[%emt 0:05:04]} Qe6+ {[%emt 0:01:26]} 49. Kh2 {[%emt 0:00:27]} Qd6 {[%emt 0:00:58]} 50. Qc3 {[%emt 0:01:44]} Qb6 {[%emt 0:01:25]} 51. Qb2 {[%emt 0:01:08]} Qc6 {[%emt 0:00:43]} 52. Ra8 {[%emt 0:01:02]} Qf3 {[%emt 0:02:58]} 53. Ra2 {[%emt 0:02:22]} Rf5 {[%emt 0:00:24]} 54. Qe2 {[%emt 0:00:59]} Qd5 {[%emt 0:00:17]} 55. Rd2 {[%emt 0:00:23]} Qc6 {[%emt 0:00:12]} 56. Rc2 {[%emt 0:00:32]} Qf6 {[%emt 0:00:10]} 57. Kg2 {[%emt 0:01:12]} Qb6 {[%emt 0:00:57]} 58. Kh2 {[%emt 0:00:33]} Qd6 {[%emt 0:00:24]} 59. Rd2 {[%emt 0:00:23]} Qf6 {[%emt 0:00:16]} 60. Kg2 {[%emt 0:01:35]} Kg7 {[%emt 0:00:54]} 61. Qe4 {[%emt 0:01:04]} Qa6 {[%emt 0:00:36]} 62. Rf2 {[%emt 0:01:18]} Rxf2+ {[%emt 0:00:18]} 63. Kxf2 {[%emt 0:00:03]} Qe6 {[%emt 0:00:10]} 64. Qb4 {[%emt 0:00:42]} Qf5+ {[%emt 0:01:06]} 65. Kg2 {[%emt 0:00:17]} Qc2+ {[%emt 0:00:14]} 66. Kg1 {[%emt 0:00:38]} Qd1+ {[%emt 0:01:03]} 67. Kf2 {[%emt 0:00:15]} Qd3 {[%emt 0:00:08]} 68. Qb2+ {[%emt 0:00:27]} Kh7 {[%emt 0:00:10]} 69. Kg2 {[%emt 0:00:35]} g5 {[%emt 0:00:33]} 70. hxg5 {[%emt 0:00:54]} Qd5+ {[%emt 0:00:05]} 71. Kh2 {[%emt 0:00:03]} Qxg5 {[%emt 0:00:05]} 72. Qd4 {[%emt 0:00:19]} Qf5 {[%emt 0:00:33]} 73. Qd8 {[%emt 0:01:06]} Qe5 {[%emt 0:00:27]} 74. Kg2 {[%emt 0:00:24]} Kg7 {[%emt 0:00:10]} 75. Qd2 {[%emt 0:00:27]} Kg6 {[%emt 0:00:11]} 76. Qc2+ {[%emt 0:00:18]} Qf5 {[%emt 0:00:06]} 77. Qd2 {[%emt 0:00:36]} Qe4+ {[%emt 0:00:27]} 78. Kh2 {[%emt 0:01:04]} h4 {[%emt 0:00:09]} 79. Qd6+ {[%emt 0:00:04]} Kh5 {[%emt 0:00:49]} 80. gxh4 {[%emt 0:00:41]} Qxh4+ {[%emt 0:01:00]} 81. Kg2 {[%emt 0:00:05]} Qe4+ {[%emt 0:00:28]} 82. Kf2 {[%emt 0:00:53]} Qf5+ {[%emt 0:00:21]} 83. Kg3 {[%emt 0:00:31]} Qg6+ {[%emt 0:00:18]} 1/2-1/2

[Event "Czech Extraliga 2023-24"]
[Site "Czech Republic"]
[Date "2024.04.06"]
[Round "10.1"]
[White "Gumularz, Szymon"]
[Black "Nabaty, Tamir"]
[Result "1-0"]
[ECO "A11"]
[WhiteElo "2591"]
[BlackElo "2643"]
[Annotator "TA"]
[PlyCount "105"]
[EventDate "2023.10.14"]
[EventCountry "CZE"]
[SourceTitle "playchess.com"]
[Source "ChessBase"]
[SourceQuality "1"]
[TimeControl "40/5400+30:1800+30"]

{[%evp 9,105,11,28,12,21,26,17,23,30,10,49,34,60,58,72,69,62,62,90,80,95,86,108,99,152,150,131,71,96,96,94,11,16,0,0,0,86,85,76,74,75,69,70,79,75,87,118,120,156,165,175,152,196,183,232,242,214,242,235,237,237,235,235,235,217,220,210,169,199,143,81,91,91,81,29944,29950,29946,29944,29937,5856,29962,29964,29958,29957,29962,29961,29964,29965,29973,29974,29974,29975,29975,29976,29977,29975,29979,29980]} 1. c4 {[%emt 0:00:03]} c6 {[%emt 0:01:42]} 2. Nf3 {[%emt 0:00:33]} d5 {[%emt 0:00:12]} 3. e3 {[%emt 0:00:18]} Bg4 {[%emt 0:00:27]} 4. h3 {[%emt 0:01:48]} Bxf3 {[%emt 0:00:28]} 5. Qxf3 {[%emt 0:00:05]} e5 {[%emt 0:00:29]} 6. cxd5 {[%emt 0:03:22]} cxd5 {[%emt 0:00:23]} 7. Bb5+ {[%emt 0:00:40]} Nc6 {[%emt 0:00:12]} 8. Qg3 {[%emt 0:00:26] The position is equal.} Qd6 {[%emt 0:00:32]} 9. b3 {[%emt 0:01:33]} g6 {[%emt 0:05:00]} 10. Bb2 {[%emt 0:10:05]} Bg7 {[%emt 0:03:25]} 11. Bxc6+ {[%emt 0:00:41]} bxc6 {[%emt 0:02:23]} 12. d4 {[%emt 0:00:17]} f6 {[%emt 0:10:59]} 13. O-O {[%emt 0:00:20]} Nh6 {[%emt 0:00:54] [#]} 14. e4 $1 {[%emt 0:06:26]} dxe4 {[%emt 0:18:07] aiming for ...Nf5.} (14... Qe6 15. dxe5) 15. dxe5 {[%emt 0:01:10]} fxe5 {[%emt 0:00:03]} 16. Qe3 {[%emt 0:01:14]} Qd3 {[%emt 0:12:13]} (16... Nf5 $142 17. Qxe4 Qd5) 17. Qc5 $1 $16 {[%emt 0:05:56][%csl LRc6,LRe5]} Qb5 {[%emt 0:02:45]} 18. Rc1 {[%emt 0:02:07]} (18. Qd6 $142 Qd5 19. Qa3) 18... Rd8 {[%emt 0:02:36][%cal Od8d1]} 19. Qxa7 {[%emt 0:08:48]} (19. Qxc6+ Qxc6 20. Rxc6 Rd1+ 21. Kh2 O-O $11) 19... O-O {[%emt 0:02:00]} 20. Na3 {[%emt 0:23:44]} (20. Nc3 $16 Qd3 21. Re1) 20... Qd5 $11 {[%emt 0:12:54]} 21. Qb6 {[%emt 0:06:42]} (21. Rc5 {feels hotter.} Qd2 22. Rc2 Qf4 23. Rf1) 21... Nf5 {[%emt 0:10:40][%cal Oe4e3] ...e3! would now be deadly.} 22. Qxc6 {[%emt 0:04:21]} e3 {[%emt 0:00:02]} (22... Qxc6 $11 23. Rxc6 e3 24. fxe3 Nxe3) 23. Qxd5+ {[%emt 0:06:36]} Rxd5 {[%emt 0:00:02]} 24. fxe3 {[%emt 0:04:34] Hoping for e4.} Nxe3 {[%emt 0:02:13]} 25. Nc4 $36 {[%emt 0:00:15][%mdl 2048] Prevents Rd2. White has the initiative.} Bh6 {[%emt 0:05:45]} 26. Re1 {[%emt 0:00:13]} (26. Nxe5 $2 Rd2 27. Nc4 Nxc4 $19 (27... Rxg2+ 28. Kh1 $15)) 26... Nxc4 27. bxc4 {[%emt 0:00:03]} Rd3 {[%emt 0:02:47]} 28. Bxe5 {[%emt 0:00:38]} (28. Rxe5 Rd2 29. Rb5 Rff2 30. Rb8+ Rf8 $14 (30... Bf8 31. Be5 $11)) 28... Be3+ {[%emt 0:00:23]} 29. Kh1 {[%emt 0:00:10]} Rc8 {[%emt 0:02:47]} 30. Rab1 {[%emt 0:06:27]} Rxc4 {[%emt 0:01:15]} 31. Rb8+ {[%emt 0:02:33]} Kf7 {[%emt 0:00:02] [#]} 32. Rb3 $1 {[%emt 0:03:16]} Rxb3 {[%emt 0:01:39]} 33. axb3 {[%emt 0:00:01]} Rc1 {[%emt 0:01:05]} 34. Rxc1 {[%emt 0:00:03]} Bxc1 $18 {[%emt 0:00:04][%mdl 4096] Endgame. KB-KB} 35. Kg1 {[%emt 0:00:30]} Ke6 {[%emt 0:00:07]} 36. Bc3 {[%emt 0:00:11]} Kd5 {[%emt 0:00:22]} 37. Kf1 {[%emt 0:00:05]} Ke4 {[%emt 0:00:46]} 38. Ke2 {[%emt 0:00:03]} Bf4 {[%emt 0:00:49]} 39. b4 {[%emt 0:01:55]} (39. Bb4 $18) 39... Bd6 $16 {[%emt 0:00:54]} 40. Be1 {[%emt 0:00:40] Black must now prevent b5.} Kd4 {[%emt 0:00:29]} 41. Kf3 {[%emt 0:30:28]} h6 $2 {[%emt 0:12:41][%mdl 8192] Loses the game.} (41... Kc4 $16) 42. b5 {[%emt 0:00:00]} Kc5 {[%emt 0:01:59]} 43. Bg3 {[%emt 0:00:00]} Be7 {[%emt 0:05:32] [#]} 44. Ke4 $1 {[%emt 0:00:00][%cal Ob5b6] White threatens b6! and mate.} Kxb5 {[%emt 0:00:54]} 45. Kd5 {[%emt 0:00:00] White mates.} Bg5 {[%emt 0:02:53]} 46. Bd6 {[%emt 0:00:00]} Bd2 {[%emt 0:03:01]} 47. Bf8 {[%emt 0:00:00]} h5 {[%emt 0:01:40]} 48. Ke6 {[%emt 0:00:00]} Bc3 {[%emt 0:05:16]} 49. Kf7 {[%emt 0:00:00]} g5 {[%emt 0:00:02][%cal Bg6g5,Bg5g4][%mdl 32]} 50. Kg6 {[%emt 0:00:00]} g4 {[%emt 0:00:22]} 51. h4 {[%emt 0:00:00]} ({And not} 51. Kxh5 gxh3 52. gxh3 Kc6 $11) 51... Kc6 {[%emt 0:00:53]} 52. Kxh5 {[%emt 0:00:00]} g3 {[%emt 0:00:35]} 53. Kg6 {[%emt 0:00:00] Weighted Error Value: White=0.09 (flawless) /Black=0.36.  Loses game:     	---       	Black=1      Mistake:       	White=3     	Black=2      Inaccurate:     	---       	Black=4      OK:         	White=16    	Black=11     Best:        	White=5     	Black=3      Strong:       	White=1     	---} 1-0

[Event "Czech Extraliga 2023-24"]
[Site "Czech Republic"]
[Date "2024.04.06"]
[Round "10.1"]
[White "Pechac, Jergus"]
[Black "Sahidi, Samir"]
[Result "1-0"]
[ECO "C54"]
[WhiteElo "2586"]
[BlackElo "2478"]
[Annotator "TA"]
[PlyCount "107"]
[EventDate "2023.10.14"]
[EventCountry "CZE"]
[SourceTitle "playchess.com"]
[Source "ChessBase"]
[SourceQuality "1"]
[TimeControl "40/5400+30:1800+30"]

{[%evp 32,107,31,27,43,13,14,0,0,0,0,0,0,0,0,0,0,0,3,0,0,0,0,0,43,56,50,53,54,43,43,3,17,0,25,0,0,0,35,7,48,24,26,7,233,61,520,527,731,710,747,745,677,714,767,755,769,829,813,813,858,0,605,578,631,661,889,833,915,865,1703,964,29991,29988,29988,29989,29989,29990]} 1. e4 {[%emt 0:01:26]} e5 {[%emt 0:00:23]} 2. Nf3 {[%emt 0:00:06]} Nc6 {[%emt 0:00:10]} 3. Bc4 {[%emt 0:00:07]} Nf6 {[%emt 0:01:04]} 4. d3 {[%emt 0:00:06]} Bc5 {[%emt 0:00:56]} 5. c3 {[%emt 0:00:19]} d6 {[%emt 0:02:00]} 6. O-O {[%emt 0:00:07]} a6 {[%emt 0:01:58]} 7. a4 {[%emt 0:01:00] C54: Giuoco Piano: 4 c3 Nf6, main lines with 5 d4 and 5 d3.} Ba7 {[%emt 0:01:48]} 8. Re1 $1 {[%emt 0:00:20] 8.Re1 is better than 8.Nbd2.} h6 {[%emt 0:04:01]} 9. Nbd2 {[%emt 0:00:30]} O-O {[%emt 0:00:57]} 10. h3 {[%emt 0:00:08]} Be6 {[%emt 0:01:51]} 11. Bxe6 {[%emt 0:00:13]} fxe6 {[%emt 0:00:05]} 12. b4 {[%emt 0:00:06]} Qe8 {[%emt 0:03:00]} 13. Nf1 {[%emt 0:00:09]} Nh5 {[%emt 0:04:49]} 14. Ra2 {[%emt 0:00:10]} b5 {[%emt 0:07:17]} 15. Kh1 $5 $146 {[%emt 0:02:59][%mdl 8] An interesting novelty.} ({Predecessor:} 15. Be3 Nf4 16. Bxf4 Rxf4 17. g3 Rf8 18. Kg2 Qf7 19. N1h2 Bb6 20. Qe2 Rad8 21. axb5 axb5 {½-½ Nihal,S (2694)-Heimann,A (2552) EU-Cup 38th Durres 2023 (3.1)}) 15... Qg6 {[%emt 0:05:08]} 16. N1h2 {[%emt 0:02:12]} Rad8 {[%emt 0:05:00]} 17. Ng4 {[%emt 0:09:09]} Nf4 {[%emt 0:03:42]} 18. Bxf4 {[%emt 0:16:45]} Rxf4 {[%emt 0:01:47]} 19. g3 {[%emt 0:00:09]} Rff8 {[%emt 0:05:07]} 20. Kg2 {[%emt 0:00:18]} Bb6 {[%emt 0:01:11]} 21. Qe2 {[%emt 0:01:55]} Qe8 {[%emt 0:07:15]} 22. Rb1 {[%emt 0:00:59]} Rb8 {[%emt 0:02:34]} 23. Qd1 {[%emt 0:01:18]} Qf7 {[%emt 0:04:15]} 24. Rc1 {[%emt 0:01:09]} Rb7 {[%emt 0:07:34]} 25. Ngh2 {[%emt 0:01:31]} Rbb8 {[%emt 0:00:25]} 26. Qd2 {[%emt 0:03:04]} Qd7 {[%emt 0:02:58]} 27. d4 {[%emt 0:03:27]} (27. a5 $5 Ba7 $8 28. d4 $11) 27... exd4 {[%emt 0:01:57]} 28. a5 {[%emt 0:00:08]} Ba7 {[%emt 0:01:36]} 29. cxd4 {[%emt 0:00:06]} (29. Nxd4 Ne5 30. Rf1 c5 $15) 29... Ne7 {[%emt 0:01:13]} 30. Rac2 {[%emt 0:07:42]} c6 {[%emt 0:01:47]} 31. Nh4 {[%emt 0:02:18]} Rbd8 {[%emt 0:05:20]} 32. f4 {[%emt 0:01:26]} e5 {[%emt 0:02:52]} 33. d5 {[%emt 0:04:13]} exf4 $1 {[%emt 0:02:49]} 34. gxf4 {[%emt 0:00:05]} ({Reject} 34. dxc6 Qe6 35. Qd3 d5 $15) 34... c5 {[%emt 0:01:58]} 35. f5 {[%emt 0:03:29]} Rc8 {[%emt 0:02:02]} 36. bxc5 $1 {[%emt 0:06:53]} Rxc5 {[%emt 0:02:18]} 37. Rxc5 {[%emt 0:01:07]} dxc5 $2 {[%emt 0:01:37]} (37... Bxc5 $11 {and Black has nothing to worry.} 38. Ng4 h5) 38. Ng4 $2 {[%emt 0:00:17]} ({White should try} 38. d6 $18) 38... Nc6 $2 {[%emt 0:06:46][%mdl 8192]} (38... Bb8 $14) 39. Ng6 $18 Re8 40. Qxh6 gxh6 41. Nf6+ (41. dxc6 $2 {perishes.} Qd2+ (41... Qxc6 $2 42. Re1 $19) 42. Kf3 Qxc1 $19 (42... Qd3+ $2 43. Kg2 $19)) 41... Kg7 42. Nxd7 Nd8 43. Ne7 ({Not} 43. Nxc5 Bxc5 44. Rxc5 Rxe4 $18) 43... c4 44. f6+ Kf7 45. Nf5 Kg6 46. Ne7+ Kf7 47. Nc8 Bb8 {[%emt 0:33:40]} 48. Kf3 Nc6 {[%emt 0:00:30]} 49. dxc6 Rxc8 {[%emt 0:00:30]} 50. e5 Bc7 {[%emt 0:00:30]} 51. Rg1 Bxa5 {[%emt 0:00:30]} 52. Rg7+ Ke6 {[%emt 0:00:30]} 53. Ke4 Bb4 {[%emt 0:00:30]} 54. Nb6 1-0

[Event "Czech Extraliga 2023-24"]
[Site "Czech Republic"]
[Date "2024.04.06"]
[Round "10.1"]
[White "Warakomski, Tomasz"]
[Black "Rodshtein, Maxim"]
[Result "0-1"]
[ECO "C54"]
[WhiteElo "2539"]
[BlackElo "2588"]
[Annotator "TA"]
[PlyCount "82"]
[EventDate "2023.10.14"]
[EventCountry "CZE"]
[SourceTitle "playchess.com"]
[Source "ChessBase"]
[SourceQuality "1"]
[TimeControl "40/5400+30:1800+30"]

{[%evp 10,82,11,6,15,5,16,12,0,14,0,0,0,-14,-11,-12,-9,-14,-17,-12,0,-22,-15,-16,-14,-46,-33,-23,0,0,0,0,-10,0,0,0,0,0,0,-86,-104,-95,-96,-101,-71,-106,-107,-135,-131,-139,-133,-130,-137,-137,-145,-183,-159,-175,-171,-186,-166,-152,-152,-167,-177,-177,-68,-193,-125,-486,-483,-456,-463,-1171,-1158]} 1. e4 {[%emt 0:00:03]} e5 {[%emt 0:00:21]} 2. Nf3 {[%emt 0:00:14]} Nc6 {[%emt 0:00:05]} 3. Bc4 {[%emt 0:00:05]} Bc5 {[%emt 0:00:15]} 4. O-O {[%emt 0:00:28]} Nf6 {[%emt 0:00:29]} 5. d3 {[%emt 0:00:17]} d6 {[%emt 0:00:26]} 6. c3 {[%emt 0:00:22]} a5 {[%emt 0:00:51]} 7. Nbd2 {[%emt 0:09:48]} O-O {[%emt 0:03:34]} 8. h3 {[%emt 0:01:38]} Be6 {[%emt 0:05:02] The position is equal.} 9. a4 {[%emt 0:09:05]} Re8 {[%emt 0:09:50]} 10. Re1 {[%emt 0:03:12]} Bxc4 {[%emt 0:14:02]} 11. dxc4 {[%emt 0:07:40]} Nh5 {[%emt 0:13:44]} 12. Nf1 {[%emt 0:00:30]} Qf6 {[%emt 0:02:15]} 13. Ne3 {[%emt 0:04:43]} Bxe3 {[%emt 0:01:45]} 14. Bxe3 {[%emt 0:01:00]} Nf4 {[%emt 0:03:19]} 15. g3 {[%emt 0:10:25]} Ne6 {[%emt 0:01:43]} 16. Nh4 {[%emt 0:02:48]} Ne7 {[%emt 0:02:52]} 17. Qg4 {[%emt 0:03:24]} g6 {[%emt 0:03:27]} 18. Rad1 {[%emt 0:13:16]} b6 {[%emt 0:01:00]} 19. f4 {[%emt 0:02:11]} h5 {[%emt 0:02:01]} 20. fxe5 {[%emt 0:00:12]} Qxe5 {[%emt 0:07:08]} 21. Qf3 {[%emt 0:00:08]} Nc6 {[%emt 0:00:40]} 22. Nf5 $1 {[%emt 0:09:56]} gxf5 {[%emt 0:05:25]} 23. exf5 {[%emt 0:00:05]} Ng7 {[%emt 0:00:03] And now ...Qe4 would win.} 24. f6 {[%emt 0:02:50] [#]} (24. Bf2 $11 {was the only way to keep the balance.} Qxf5 25. Qxc6) 24... Qe4 $1 $17 {[%emt 0:02:45]} (24... Nf5 $2 25. Bf2 Qxf6 26. Qxc6 $16) 25. Qxe4 {[%emt 0:03:33]} Rxe4 {[%emt 0:00:05]} 26. fxg7 {[%emt 0:00:04]} Ne5 $36 {[%emt 0:03:14][%mdl 2048] Black is in control.} 27. Kg2 {[%emt 0:01:22] Against Nf3} Nxc4 {[%emt 0:03:12]} (27... Rxc4 $6 28. Bd4 $11) (27... Kxg7 $2 28. Bh6+ Kxh6 29. Rxe4 $18) 28. Bg5 {[%emt 0:05:38]} Rxe1 {[%emt 0:02:41]} (28... Nxb2 $2 29. Rxe4 Nxd1 30. Bf6 $18) 29. Rxe1 {[%emt 0:00:04]} Kxg7 {[%emt 0:00:04][%mdl 4096] Endgame. KRB-KRN} 30. b3 {[%emt 0:06:46] [#]} Ne5 {[%emt 0:00:20]} 31. Rf1 {[%emt 0:00:35]} Kg6 {[%emt 0:01:58]} 32. h4 {[%emt 0:01:43]} Nd7 {[%emt 0:05:38] Wards off Rf6+} 33. Re1 {[%emt 0:00:18]} Nc5 {[%emt 0:01:22]} 34. Re7 {[%emt 0:01:35]} Rc8 {[%emt 0:01:13]} (34... Nxb3 35. Rxc7 Nc5 36. Rc6 $15) 35. Kf3 {[%emt 0:00:57]} Ne6 {[%emt 0:04:13]} 36. Be3 {[%emt 0:00:15]} Kf6 {[%emt 0:00:54]} 37. Rd7 {[%emt 0:00:06]} Rg8 {[%emt 0:00:31]} (37... Nc5 $19 38. Bg5+ (38. Bxc5 $2 bxc5 39. g4 hxg4+ 40. Kxg4 Ke6 $19) 38... Kg7) 38. c4 {[%emt 0:01:33]} (38. Bd4+ $1 $15 Nxd4+ 39. cxd4) 38... Rg4 {[%emt 0:00:31]} (38... Kg7 $19 {aiming for ...Kf8.} 39. Bf4 Rh8) 39. Bf2 $2 {[%emt 0:00:37][%mdl 8192]} (39. Bg5+ $17 {is more resistant.} Kg7 (39... Nxg5+ 40. hxg5+ Kxg5 41. Rxc7 $11) 40. Bd8) 39... Kg7 $19 {[%emt 0:00:19] Black is clearly winning.} 40. Be3 {[%emt 0:00:24]} Kf8 {[%emt 0:00:14] Strongly threatening ...Ke8.} 41. Bg5 {[%emt 0:30:36]} (41. Bxb6 $142 cxb6 42. Rxd6) 41... Rxg5 {[%emt 0:30:23] Weighted Error Value: White=0.46/Black=0.07 (flawless) .  Loses game:     	White=1     	---        Mistake:       	White=3     	Black=2      Inaccurate:     	White=2     	---        OK:         	White=12    	Black=17     Best:        	White=1     	Black=3      Strong:       	White=1     	Black=1} (41... Nxg5+ 42. hxg5 Rd4 (42... Rxg5 43. Rxc7 d5 44. c5 $14) 43. Ke2 $15 (43. Rxc7 Rd3+ 44. Kf4 Kg7 $17)) 0-1

[Event "Czech Extraliga 2023-24"]
[Site "Czech Republic"]
[Date "2024.04.06"]
[Round "10.1"]
[White "Stocek, Jiri"]
[Black "Teclaf, Pawel"]
[Result "1/2-1/2"]
[ECO "E55"]
[WhiteElo "2531"]
[BlackElo "2563"]
[Annotator "TA"]
[PlyCount "65"]
[EventDate "2023.10.14"]
[EventCountry "CZE"]
[SourceTitle "playchess.com"]
[Source "ChessBase"]
[SourceQuality "1"]
[TimeControl "40/5400+30:1800+30"]

{[%evp 21,65,24,22,18,29,32,54,62,53,37,54,7,25,7,30,31,57,47,59,30,28,37,35,43,39,8,67,52,72,75,77,72,78,59,85,85,92,38,39,38,43,41,43,37,43,8]} 1. d4 {[%emt 0:00:53]} Nf6 {[%emt 0:00:03]} 2. c4 {[%emt 0:00:10]} e6 {[%emt 0:00:04]} 3. Nc3 {[%emt 0:00:19]} Bb4 {[%emt 0:00:11]} 4. e3 {[%emt 0:00:12]} O-O {[%emt 0:02:01]} 5. Bd3 {[%emt 0:01:48]} d5 {[%emt 0:01:50]} 6. Nf3 {[%emt 0:00:34]} dxc4 {[%emt 0:01:30]} 7. Bxc4 {[%emt 0:00:08]} c5 {[%emt 0:00:02]} 8. O-O {[%emt 0:00:52]} Nbd7 {[%emt 0:02:23]} 9. a3 {[%emt 0:04:19]} Bxc3 {[%emt 0:02:55]} 10. bxc3 {[%emt 0:00:09]} b6 {[%emt 0:00:02]} 11. Re1 {[%emt 0:04:48]} Bb7 {[%emt 0:00:11]} 12. Bb2 {[%emt 0:00:26]} Qc7 {[%emt 0:05:06] [#] White must now prevent ...cxd4.} 13. Nd2 {[%emt 0:06:06]} e5 {[%emt 0:17:48]} 14. e4 {[%emt 0:04:17]} cxd4 {[%emt 0:07:20]} 15. cxd4 {[%emt 0:00:33]} exd4 {[%emt 0:00:04]} 16. Bxd4 {[%emt 0:04:50]} (16. Rc1 $14 Ne5 17. Bf1 (17. Bxd4 Qd6 $11)) 16... Qd6 {[%emt 0:00:30]} 17. Bc3 {[%emt 0:06:16]} Nc5 {[%emt 0:13:58]} 18. f3 {[%emt 0:15:19] [#] e5 is the strong threat.} (18. e5 $5 Qc6 $8 19. Bf1 $11 (19. exf6 $2 Qxg2#)) 18... b5 {[%emt 0:12:24]} 19. Bf1 {[%emt 0:09:25][%cal Oe4e5] This pair of bishops is nice.} ({Inferior is} 19. Bxb5 Qb6 20. Bd4 Qxb5 $19) 19... Rfd8 {[%emt 0:06:46] Strongly threatening ...Nd3.} 20. Qe2 {[%emt 0:09:29]} (20. Bxb5 $2 {is the wrong capture.} Qb6 21. Kh1 Qxb5 $19) 20... Nd3 {[%emt 0:02:51]} 21. Qxd3 {[%emt 0:00:35]} Qxd3 {[%emt 0:00:27]} 22. Bxd3 {[%emt 0:00:06]} Rxd3 {[%emt 0:00:05]} 23. Rec1 {[%emt 0:01:47]} Rc8 {[%emt 0:05:00]} (23... Nh5 $11) 24. Bb4 $14 {[%emt 0:01:09]} Nd7 {[%emt 0:05:46]} 25. Rxc8+ {[%emt 0:08:35]} Bxc8 {[%emt 0:00:07]} 26. Rc1 {[%emt 0:01:10]} Nb6 {[%emt 0:00:04]} 27. Rc5 {[%emt 0:05:06]} Ba6 {[%emt 0:00:52]} 28. Kf2 {[%emt 0:01:17]} f6 {[%emt 0:03:31]} 29. Rc7 {[%emt 0:05:32]} (29. h4 $16) 29... Rd7 {[%emt 0:00:03] White is slightly better.} 30. Rxd7 {[%emt 0:00:31]} Nxd7 {[%emt 0:00:01]} 31. Nb3 {[%emt 0:00:14]} Bb7 {[%emt 0:02:04]} 32. Ke3 {[%emt 0:00:51]} a6 {[%emt 0:01:05]} 33. Nc5 {[%emt 0:04:48] Weighted Error Value: White=0.11 (very precise) /Black=0.16 (very precise) .  Mistake:       	White=2     	Black=1      Inaccurate:     	White=3     	Black=2      OK:         	White=10    	Black=5      Best:        	White=2     	Black=1} 1/2-1/2